[Event "Fagernes Chess GM-Swiss 2024"]
[Site "Fagernes"]
[Date "2024.03.28"]
[Round "6.20"]
[White "Audi Ameya"]
[Black "Nandhidhaa, P V"]
[Result "1/2-1/2"]
[ECO "C11"]
[WhiteElo "2378"]
[BlackElo "2305"]
[Annotator "RC"]
[PlyCount "93"]
[EventDate "2024.03.25"]
[EventType "swiss"]
[EventCountry "NOR"]
[SourceTitle "playchess.com"]
[Source "ChessBase"]
[SourceQuality "1"]
[TimeControl "40/6000+30:2400+30"]

1. e4 {[%emt 0:00:02]} e6 {[%emt 0:03:58]} 2. d4 {[%emt 0:00:05]} d5 {[%emt 0:00:03]} 3. Nc3 {[%emt 0:00:03]} Nf6 {[%emt 0:00:06]} 4. e5 {[%emt 0:00:19]} Nfd7 {[%emt 0:00:09]} 5. f4 {[%emt 0:00:04]} c5 {[%emt 0:00:08]} 6. Nf3 {[%emt 0:00:06]} Nc6 {[%emt 0:00:09]} 7. Be3 {[%emt 0:00:07]} Be7 {[%emt 0:00:14]} 8. a3 {[%emt 0:00:38]} O-O {[%emt 0:00:26]} 9. dxc5 {[%emt 0:00:28]} Nxc5 {[%emt 0:00:27]} 10. Be2 {[%emt 0:02:06]} b6 {[%emt 0:07:27]} 11. O-O {[%emt 0:00:22]} a5 {[%emt 0:01:23]} 12. Bb5 {[%emt 0:16:17]} Na7 {[%emt 0:12:20]} 13. Be2 {[%emt 0:00:38]} Nc6 {[%emt 0:04:00]} 14. Kh1 {[%emt 0:01:07]} Bb7 {[%emt 0:05:08]} 15. Nb5 {[%emt 0:02:43]} Ne4 {[%emt 0:11:54]} 16. Bd3 {[%emt 0:11:45]} Ba6 {[%emt 0:04:12]} 17. Nbd4 {[%emt 0:02:33]} Nxd4 {[%emt 0:07:44]} 18. Nxd4 {[%emt 0:00:08]} Bc5 {[%emt 0:03:58]} 19. b4 {[%emt 0:16:13]} Bxd3 {[%emt 0:08:58]} 20. cxd3 {[%emt 0:01:47]} Nc3 {[%emt 0:00:30]} 21. Qe1 {[%emt 0:12:13]} Bxd4 {[%emt 0:03:39]} 22. Bxd4 {[%emt 0:00:05]} Nb5 {[%emt 0:01:31]} 23. Bb2 {[%emt 0:18:21]} a4 {[%emt 0:03:26]} 24. f5 {[%emt 0:00:00]} exf5 {[%emt 0:00:10]} 25. Rxf5 {[%emt 0:00:00]} Nc7 {[%emt 0:02:55]} 26. Qf2 {[%emt 0:00:36]} Ne6 {[%emt 0:02:59]} 27. Rf1 {[%emt 0:00:05]} Ra7 {[%emt 0:01:09]} 28. Bd4 {[%emt 0:00:27]} Rb7 {[%emt 0:01:42]} 29. h3 {[%emt 0:03:50]} Qc7 {[%emt 0:01:33]} 30. h4 {[%emt 0:03:15]} Rc8 {[%emt 0:06:57]} 31. h5 {[%emt 0:03:32]} Qc2 {[%emt 0:01:35]} 32. Qe3 {[%emt 0:00:30]} h6 {[%emt 0:01:28]} 33. Bxb6 {[%emt 0:02:28]} Rc3 {[%emt 0:00:48]} 34. R5f2 {[%emt 0:05:43]} Qxd3 {[%emt 0:01:04]} 35. Rf3 {[%emt 0:00:11]} Qxe3 {[%emt 0:03:27]} 36. Rxe3 {[%emt 0:00:04]} Rxe3 {[%emt 0:00:09]} 37. Bxe3 {[%emt 0:00:04]} Rc7 {[%emt 0:00:55]} 38. Rc1 {[%emt 0:07:03]} Rxc1+ {[%emt 0:01:16]} 39. Bxc1 {[%emt 0:00:03]} Nc7 {[%emt 0:00:20]} 40. g4 {[%emt 0:01:07]} Kf8 {[%emt 0:02:07]} 41. Kg2 {[%emt 0:42:29]} Ke7 {[%emt 0:41:43]} 42. Kf3 {[%emt 0:00:40]} Kd7 {[%emt 0:04:57]} 43. Ke3 {[%emt 0:00:00]} Ne6 {[%emt 0:00:00]} 44. Kd3 {[%emt 0:00:00]} Kc6 {[%emt 0:00:00]} 45. Be3 {[%emt 0:00:00]} Kb5 {[%emt 0:00:00]} 46. Bf2 {[%emt 0:00:00]} Kc6 {[%emt 0:00:00]} 47. Be3 {[%emt 0:00:00]} 1/2-1/2

[Event "Fagernes Chess GM-Swiss 2024"]
[Site "Fagernes"]
[Date "2024.03.28"]
[Round "6.21"]
[White "Aamodt, Peder Marcus"]
[Black "Panda Sambit"]
[Result "1/2-1/2"]
[ECO "B13"]
[WhiteElo "1941"]
[BlackElo "2377"]
[Annotator "RC"]
[PlyCount "125"]
[EventDate "2024.03.25"]
[EventType "swiss"]
[EventCountry "NOR"]
[SourceTitle "playchess.com"]
[Source "ChessBase"]
[SourceQuality "1"]
[TimeControl "40/6000+30:2400+30"]

1. e4 {[%emt 0:03:00]} c6 {[%emt 0:04:42]} 2. d4 {[%emt 0:00:41]} d5 {[%emt 0:00:04]} 3. exd5 {[%emt 0:00:41]} cxd5 {[%emt 0:00:08]} 4. Bd3 {[%emt 0:00:13]} Nf6 {[%emt 0:05:40]} 5. c3 {[%emt 0:01:29]} Bg4 {[%emt 0:00:04]} 6. Qb3 {[%emt 0:00:09]} Qc7 {[%emt 0:00:05]} 7. h3 {[%emt 0:00:09]} Bd7 {[%emt 0:00:01]} 8. Nf3 {[%emt 0:01:38]} e6 {[%emt 0:00:56]} 9. O-O {[%emt 0:01:31]} Bd6 {[%emt 0:02:13]} 10. Re1 {[%emt 0:02:42]} Bc6 {[%emt 0:02:00]} 11. Qd1 {[%emt 0:05:42]} Nbd7 {[%emt 0:02:53]} 12. Qe2 {[%emt 0:03:12]} O-O {[%emt 0:07:24]} 13. Nbd2 {[%emt 0:04:48]} Rab8 {[%emt 0:23:46]} 14. a4 {[%emt 0:24:39]} Bf4 {[%emt 0:11:02]} 15. Ne5 {[%emt 0:08:32]} Nxe5 {[%emt 0:06:26]} 16. dxe5 {[%emt 0:00:21]} Nd7 {[%emt 0:01:57]} 17. Nf3 {[%emt 0:01:06]} Bxc1 {[%emt 0:00:07]} 18. Rexc1 {[%emt 0:00:14]} f6 {[%emt 0:10:44]} 19. Re1 {[%emt 0:05:16]} Rbe8 {[%emt 0:05:18]} 20. b4 {[%emt 0:03:07]} Nxe5 {[%emt 0:13:14]} 21. Nxe5 {[%emt 0:01:07]} fxe5 {[%emt 0:00:08]} 22. Qxe5 {[%emt 0:02:40]} Qxe5 {[%emt 0:00:22]} 23. Rxe5 {[%emt 0:00:03]} Rf4 {[%emt 0:00:41]} 24. a5 {[%emt 0:17:35]} Kf7 {[%emt 0:09:30]} 25. Rae1 {[%emt 0:02:12]} Bd7 {[%emt 0:00:27]} 26. R1e3 {[%emt 0:05:55]} g6 {[%emt 0:01:59]} 27. g3 {[%emt 0:00:34]} Rf6 {[%emt 0:00:01]} 28. h4 {[%emt 0:00:34]} Rc8 {[%emt 0:01:31]} 29. Bb1 {[%emt 0:08:04]} Bb5 {[%emt 0:00:57]} 30. f4 {[%emt 0:01:20]} Bc4 {[%emt 0:00:36]} 31. Bc2 {[%emt 0:00:14]} b6 {[%emt 0:00:28]} 32. axb6 {[%emt 0:06:17]} axb6 {[%emt 0:00:01]} 33. Bd3 {[%emt 0:00:02]} Bxd3 {[%emt 0:00:50]} 34. Rxd3 {[%emt 0:00:00]} Rf5 {[%emt 0:00:37]} 35. Re2 {[%emt 0:01:08]} Ke7 {[%emt 0:00:32]} 36. Ra2 {[%emt 0:00:25]} Kd6 {[%emt 0:00:29]} 37. Re3 {[%emt 0:01:02]} e5 {[%emt 0:00:33]} 38. Ra6 {[%emt 0:00:32]} Rb8 {[%emt 0:00:29]} 39. Rxe5 {[%emt 0:00:29]} Rxe5 {[%emt 0:00:01]} 40. fxe5+ {[%emt 0:00:01]} Kxe5 {[%emt 0:00:09]} 41. Kf2 {[%emt 0:40:09]} d4 {[%emt 0:18:32]} 42. cxd4+ {[%emt 0:00:00]} Kxd4 {[%emt 0:00:10]} 43. Ra7 {[%emt 0:00:00]} Rf8+ {[%emt 0:00:29]} 44. Ke2 {[%emt 0:00:00]} Re8+ {[%emt 0:10:42]} 45. Kf3 {[%emt 0:00:00]} h5 {[%emt 0:01:26]} 46. Rc7 {[%emt 0:00:00]} Rf8+ {[%emt 0:02:09]} 47. Ke2 {[%emt 0:00:00]} Rf6 {[%emt 0:01:33]} 48. Rc8 {[%emt 0:00:00]} Rd6 {[%emt 0:01:31]} 49. Kf3 {[%emt 0:00:00]} Rf6+ {[%emt 0:00:07]} 50. Ke2 {[%emt 0:00:00]} Ke4 {[%emt 0:00:20]} 51. Rc7 {[%emt 0:00:08]} Rd6 {[%emt 0:02:27]} 52. Rf7 {[%emt 0:05:20]} Kd4 {[%emt 0:02:02]} 53. Rc7 {[%emt 0:00:43]} Rf6 {[%emt 0:05:21]} 54. Rc8 {[%emt 0:00:09]} Ke4 {[%emt 0:00:53]} 55. Rc7 {[%emt 0:00:12]} Re6 {[%emt 0:00:07]} 56. Rc8 {[%emt 0:01:06]} Kf5+ {[%emt 0:00:32]} 57. Kf3 {[%emt 0:00:21]} Rd6 {[%emt 0:00:10]} 58. Rf8+ {[%emt 0:00:59]} Ke5 {[%emt 0:00:04]} 59. Ke3 {[%emt 0:00:03]} Rd1 {[%emt 0:01:34]} 60. Re8+ {[%emt 0:00:30]} Kf5 {[%emt 0:00:06]} 61. Rf8+ {[%emt 0:00:56]} Ke5 {[%emt 0:00:37]} 62. Re8+ {[%emt 0:00:04]} Kf5 {[%emt 0:00:49]} 63. Rf8+ {[%emt 0:00:04]} 1/2-1/2

[Event "Fagernes Chess GM-Swiss 2024"]
[Site "Fagernes"]
[Date "2024.03.28"]
[Round "6.22"]
[White "Krishnan, Ritvik"]
[Black "Chasin, Nico"]
[Result "0-1"]
[ECO "C54"]
[WhiteElo "2277"]
[BlackElo "2447"]
[Annotator "TA"]
[PlyCount "74"]
[EventDate "2024.03.25"]
[EventType "swiss"]
[EventCountry "NOR"]
[SourceTitle "playchess.com"]
[Source "ChessBase"]
[SourceQuality "1"]
[TimeControl "40/6000+30:2400+30"]

{[%evp 11,74,17,29,17,29,19,20,14,3,0,22,0,0,12,38,31,46,47,57,25,53,50,64,17,24,0,0,0,0,-34,-18,-90,-37,-47,-50,-163,0,-17,-6,-15,0,-35,-8,-43,-31,-41,0,0,0,6,60,48,74,-589,-433,-418,-425,-480,-415,-487,-447,-502,-465,-490,-466]} 1. e4 {[%emt 0:00:01]} e5 {[%emt 0:06:19]} 2. Nf3 {[%emt 0:00:06]} Nc6 {[%emt 0:00:05]} 3. Bc4 {[%emt 0:00:03]} Bc5 {[%emt 0:00:05]} 4. c3 {[%emt 0:00:02]} Nf6 {[%emt 0:00:09]} 5. d3 {[%emt 0:00:04]} d6 {[%emt 0:00:07]} 6. O-O {[%emt 0:00:05]} a6 {[%emt 0:00:09]} 7. Re1 {[%emt 0:00:20]} Ba7 {[%emt 0:00:13]} 8. a4 {[%emt 0:00:22]} h6 {[%emt 0:00:04]} 9. b4 {[%emt 0:02:24] The position is equal.} O-O {[%emt 0:00:43]} 10. h3 {[%emt 0:00:23]} Ne7 {[%emt 0:00:07][%cal Bc6e7,Be7g6,Bg6f4][%mdl 32]} 11. Bb3 {[%emt 0:02:52]} Ng6 {[%emt 0:01:50]} 12. d4 {[%emt 0:02:22]} d5 {[%emt 0:01:51]} 13. dxe5 {[%emt 0:08:18]} Nxe4 {[%emt 0:00:10]} 14. Be3 {[%emt 0:00:28]} Bxe3 {[%emt 0:02:39]} 15. Rxe3 {[%emt 0:00:01]} Nf4 {[%emt 0:00:17]} 16. Nbd2 {[%emt 0:20:52]} Ng5 {[%emt 0:01:33]} 17. Kh2 {[%emt 0:05:55]} (17. h4 $14 Nge6 18. g3) 17... c6 {[%emt 0:04:28]} 18. a5 {[%emt 0:06:54]} f6 {[%emt 0:05:01]} 19. Nxg5 {[%emt 0:04:10]} fxg5 {[%emt 0:01:34]} 20. Kg1 {[%emt 0:11:10]} Be6 {[%emt 0:03:35]} 21. Nf1 {[%emt 0:04:41] [#]} (21. Qe1 $11 {keeps the balance.}) 21... Qc7 {[%emt 0:01:16] Black is more active.} (21... h5 $1 $17 {Hoping for ...g4.} 22. Nh2 g4) 22. Ng3 {[%emt 0:03:26]} Rae8 {[%emt 0:01:22]} 23. Qd4 {[%emt 0:07:03] [#]} (23. Ra2 $15) 23... Qf7 $2 {[%emt 0:01:32]} (23... Bxh3 $1 $19 24. gxh3 Qd7) 24. f3 {[%emt 0:08:44]} Qd7 {[%emt 0:02:32][%cal Oe6h3]} 25. Ra2 {[%emt 0:01:45][%cal Og3e4]} Kh8 {[%emt 0:00:29]} 26. Nh1 {[%emt 0:02:18]} Ng6 {[%emt 0:05:05]} 27. Nf2 {[%emt 0:04:23]} Rf4 {[%emt 0:00:07]} 28. Qd2 {[%emt 0:00:59]} Bg8 {[%emt 0:01:27][%cal Od7c7]} 29. Nd3 {[%emt 0:01:50]} Rf5 {[%emt 0:00:31][%cal Od7c8]} 30. Qe1 {[%emt 0:02:41][%cal Oe5e6]} Qc7 {[%emt 0:00:49]} (30... Qc8 $11 31. e6 Rxe6 (31... Bxe6 32. Rae2 $16) 32. Rxe6 Qxe6 (32... Bxe6 33. Re2 $14)) 31. e6 $1 $14 {[%emt 0:01:32]} Nf4 {[%emt 0:00:05]} 32. Ne5 {[%emt 0:03:40][%mdl 8192] This move loses the game for White.} (32. Nc5 $16) 32... Rxe6 {[%emt 0:00:26]} 33. Ng4 {[%emt 0:01:37]} Rxe3 {[%emt 0:01:18]} 34. Qxe3 {[%emt 0:00:01]} h5 {[%emt 0:00:12]} 35. Nf2 {[%emt 0:00:35]} Re5 {[%emt 0:00:03] Black is clearly winning.} 36. Qd2 {[%emt 0:00:26]} Re2 {[%emt 0:02:53]} 37. Qd1 {[%emt 0:00:11]} Qe5 {[%emt 0:00:23] Weighted Error Value: White=0.42/Black=0.24 (precise) .  Loses game:     	White=1     	---        Missed win:     	---       	Black=1      Mistake:       	White=3     	Black=2      Inaccurate:     	White=4     	Black=5      OK:         	White=9     	Black=11     Best:        	---       	Black=1      Strong:       	White=1     	---} 0-1

[Event "Fagernes Chess GM-Swiss 2024"]
[Site "Fagernes"]
[Date "2024.03.28"]
[Round "6.23"]
[White "Prraneeth Vuppala"]
[Black "Daakshin Arun"]
[Result "1/2-1/2"]
[ECO "E66"]
[WhiteElo "2506"]
[BlackElo "2283"]
[Annotator "TA"]
[PlyCount "108"]
[EventDate "2024.03.25"]
[EventType "swiss"]
[EventCountry "NOR"]
[SourceTitle "playchess.com"]
[Source "ChessBase"]
[SourceQuality "1"]
[TimeControl "40/6000+30:2400+30"]

{[%evp 20,108,19,6,18,0,0,10,6,0,6,24,14,20,15,4,33,0,18,17,21,-10,-10,-8,0,0,12,5,25,19,4,18,24,14,50,47,88,82,79,77,82,6,7,-37,-25,-33,-29,-34,-25,-36,-29,-60,0,-20,-10,-20,-29,-22,-28,-52,0,0,-3,-12,2,-70,0,-52,-46,-56,-40,-47,0,0,1,2,8,0,0,0,0,0,0,0,0,0,0,0,0,0,0]} 1. d4 {[%emt 0:02:57]} Nf6 {[%emt 0:00:07]} 2. c4 {[%emt 0:00:05]} g6 {[%emt 0:00:13]} 3. g3 {[%emt 0:00:11]} Bg7 {[%emt 0:00:04]} 4. Bg2 {[%emt 0:00:03]} O-O {[%emt 0:00:07]} 5. Nc3 {[%emt 0:00:02]} d6 {[%emt 0:00:06]} 6. Nf3 {[%emt 0:00:04][%cal Bg1f3,Bf3d2,Bd2e4][%mdl 32]} c5 {[%emt 0:00:04]} 7. O-O {[%emt 0:00:06]} Nc6 {[%emt 0:00:02]} 8. d5 {[%emt 0:00:27]} Na5 {[%emt 0:00:06]} 9. Nd2 {[%emt 0:00:09]} e6 {[%emt 0:00:55]} 10. Rb1 {[%emt 0:01:03]} exd5 {[%emt 0:01:45]} 11. cxd5 {[%emt 0:00:07]} Bd7 {[%emt 0:00:25]} 12. Nde4 {[%emt 0:00:46]} Ne8 {[%emt 0:00:05]} 13. Qd3 $1 {[%emt 0:00:35]} c4 {[%emt 0:00:30]} 14. Qe3 {[%emt 0:00:47]} Qe7 {[%emt 0:01:18]} 15. Bd2 $1 {[%emt 0:01:09]} b6 $1 {[%emt 0:00:23]} 16. Rfc1 {[%emt 0:01:28]} Rc8 {[%emt 0:06:24]} 17. Nd1 {[%emt 0:02:14]} Bf5 {[%emt 0:06:54]} 18. Ra1 {[%emt 0:06:51]} Nb7 {[%emt 0:00:46]} (18... Nc7 $5) 19. Bc3 {[%emt 0:01:15]} Bxe4 {[%emt 0:00:48]} 20. Qxe4 {[%emt 0:00:50]} Qxe4 {[%emt 0:00:16]} 21. Bxe4 {[%emt 0:00:02]} Bxc3 {[%emt 0:14:43]} 22. Nxc3 {[%emt 0:05:27]} Nf6 {[%emt 0:00:38]} 23. Bf3 {[%emt 0:02:24]} a6 {[%emt 0:02:30]} 24. b4 {[%emt 0:14:01]} cxb3 {[%emt 0:08:43]} 25. axb3 {[%emt 0:00:02]} Nc5 {[%emt 0:02:41]} 26. Rcb1 {[%emt 0:03:37]} Rfe8 {[%emt 0:13:14]} 27. b4 {[%emt 0:08:39]} Nce4 {[%emt 0:00:58]} 28. Nxe4 {[%emt 0:03:29]} Nxe4 {[%emt 0:00:06]} 29. Rb2 {[%emt 0:03:28]} Ra8 {[%emt 0:09:24]} 30. h4 {[%emt 0:03:24]} (30. Rba2 $16) 30... a5 $1 $11 {[%emt 0:04:24][%cal Ba6a5,Ba5a4][%mdl 32]} 31. Ra3 {[%emt 0:08:35]} a4 $1 {[%emt 0:04:24]} 32. e3 {[%emt 0:01:36]} b5 {[%emt 0:06:31]} 33. Rc2 {[%emt 0:03:38]} f5 {[%emt 0:00:38]} 34. Be2 {[%emt 0:01:57]} Rab8 {[%emt 0:01:05]} 35. Rc6 {[%emt 0:03:05]} Red8 {[%emt 0:00:56]} ({Black should play} 35... Rb7 $15) 36. Kg2 {[%emt 0:02:50]} Nf6 {[%emt 0:03:07]} 37. Rd3 {[%emt 0:01:03]} Kf7 {[%emt 0:05:47]} 38. Rd1 {[%emt 0:05:57]} Ke7 {[%emt 0:02:13]} 39. Ra6 {[%emt 0:07:58]} Rdc8 {[%emt 0:06:10]} (39... Ra8 $1 $15 {feels stronger.} 40. Bxb5 Rxa6 41. Bxa6 Ra8 (41... Rb8 42. b5 $15)) 40. Ra7+ {[%emt 0:02:50]} Kf8 {[%emt 0:00:24]} 41. h5 {[%emt 0:41:25]} Ra8 {[%emt 0:11:18]} 42. Rb7 {[%emt 0:00:00]} (42. Rc1 Rxa7 43. Rxc8+ Kg7 $19) (42. Rxa8 $11 Rxa8 43. hxg6 hxg6 44. Bxb5) 42... Rab8 {[%emt 0:00:41]} (42... Nxh5 43. Bxh5 gxh5 44. Ra1 $11) (42... a3 $1 $15 43. Rxb5 Ne4 (43... Nxh5 44. Ra1 $11) (43... Rc2 44. Bd3 $17) 44. hxg6 hxg6) 43. Rc1 {[%emt 0:00:00]} Rxb7 $15 {[%emt 0:01:19]} (43... Nxh5 44. Rxb5 (44. Bxb5 a3 $11) (44. Rxc8+ Rxc8 45. Rxh7 Rc2 $11) 44... Nf6 45. Rc6 $11) 44. Rxc8+ {[%emt 0:00:00][%mdl 4096] Endgame. KRB-KRN} Kg7 {[%emt 0:01:47]} 45. Ra8 {[%emt 0:00:00] Repels Ra7} Rb6 {[%emt 0:03:35]} (45... Nxd5 46. Bf3 Nxe3+ 47. fxe3 $18) (45... Ne4 $15 {is more appropriate.}) 46. Ra5 {[%emt 0:00:00] The position is equal.} Nxd5 {[%emt 0:00:14]} 47. Bxb5 {[%emt 0:00:00]} Nxb4 {[%emt 0:01:41]} 48. Bc4 {[%emt 0:00:00]} d5 {[%emt 0:01:26]} 49. Be2 {[%emt 0:00:00]} Nc2 {[%emt 0:02:14]} 50. Rxa4 {[%emt 0:00:00]} (50. Rxd5 a3 51. Bc4 Rb2 $17 (51... gxh5 52. Ra5 $11)) 50... Rb2 {[%emt 0:00:06]} 51. Ra7+ {[%emt 0:00:00]} Kh6 {[%emt 0:01:39]} 52. Re7 {[%emt 0:00:00]} Rb1 {[%emt 0:01:53]} 53. f4 {[%emt 0:00:35]} Rb2 {[%emt 0:01:21]} 54. hxg6 {[%emt 0:05:54]} hxg6 {[%emt 0:00:10] Weighted Error Value: White=0.13 (very precise) /Black=0.11 (very precise) .  Mistake:       	White=3     	Black=4      Inaccurate:     	White=3     	Black=3      OK:         	White=16    	Black=16     Best:        	White=1     	Black=2      Strong:       	White=2     	Black=3} 1/2-1/2

[Event "Fagernes Chess GM-Swiss 2024"]
[Site "Fagernes"]
[Date "2024.03.28"]
[Round "6.24"]
[White "Brynell, Stellan"]
[Black "Lindh, Fredrik"]
[Result "0-1"]
[ECO "B31"]
[WhiteElo "2406"]
[BlackElo "2256"]
[Annotator "RC"]
[PlyCount "96"]
[EventDate "2024.03.25"]
[EventType "swiss"]
[EventCountry "NOR"]
[SourceTitle "playchess.com"]
[Source "ChessBase"]
[SourceQuality "1"]
[TimeControl "40/6000+30:2400+30"]

1. e4 {[%emt 0:00:17]} c5 {[%emt 0:00:11]} 2. Nf3 {[%emt 0:00:03]} Nc6 {[%emt 0:00:06]} 3. Bb5 {[%emt 0:00:06]} g6 {[%emt 0:00:05]} 4. O-O {[%emt 0:00:14]} Bg7 {[%emt 0:00:06]} 5. c3 {[%emt 0:00:10]} Nf6 {[%emt 0:00:09]} 6. Re1 {[%emt 0:00:14]} O-O {[%emt 0:00:10]} 7. d4 {[%emt 0:00:11]} d5 {[%emt 0:00:07]} 8. e5 {[%emt 0:00:09]} Ne4 {[%emt 0:00:04]} 9. Bxc6 {[%emt 0:00:16]} bxc6 {[%emt 0:00:05]} 10. Be3 {[%emt 0:00:11]} Qb6 {[%emt 0:13:04]} 11. Qc1 {[%emt 0:00:38]} cxd4 {[%emt 0:05:22]} 12. cxd4 {[%emt 0:00:14]} f6 {[%emt 0:00:20]} 13. Nc3 {[%emt 0:29:24]} Nxc3 {[%emt 0:05:33]} 14. Qxc3 {[%emt 0:00:07]} Bg4 {[%emt 0:03:12]} 15. exf6 {[%emt 0:05:58]} exf6 {[%emt 0:02:04]} 16. Nd2 {[%emt 0:00:35]} f5 {[%emt 0:15:14]} 17. f3 {[%emt 0:00:52]} f4 {[%emt 0:02:50]} 18. Bf2 {[%emt 0:00:22]} Bf5 {[%emt 0:01:46]} 19. Nb3 {[%emt 0:02:36]} a5 {[%emt 0:13:21]} 20. Re2 {[%emt 0:18:09]} Rfc8 {[%emt 0:08:29]} 21. Bh4 {[%emt 0:06:51]} Qb4 {[%emt 0:06:45]} 22. Bg5 {[%emt 0:12:10]} Qc4 {[%emt 0:06:29]} 23. Rd2 {[%emt 0:00:24]} a4 {[%emt 0:04:35]} 24. Nc5 {[%emt 0:00:52]} Rcb8 {[%emt 0:12:12]} 25. Rc1 {[%emt 0:13:59]} Rb4 {[%emt 0:02:55]} 26. Qxc4 {[%emt 0:01:04]} dxc4 {[%emt 0:00:06]} 27. Bxf4 {[%emt 0:03:46]} a3 {[%emt 0:02:19]} 28. bxa3 {[%emt 0:01:03]} Rxa3 {[%emt 0:00:42]} 29. Be5 {[%emt 0:02:15]} c3 {[%emt 0:00:55]} 30. Re2 {[%emt 0:03:33]} Rb2 {[%emt 0:00:36]} 31. Ree1 {[%emt 0:02:25]} Raxa2 {[%emt 0:01:55]} 32. g4 {[%emt 0:00:25]} Bh6 {[%emt 0:01:51]} 33. Rxc3 {[%emt 0:03:24]} Bd2 {[%emt 0:00:24]} 34. Rcc1 {[%emt 0:01:08]} Bxc1 {[%emt 0:00:57]} 35. Rxc1 {[%emt 0:01:02]} Rb1 {[%emt 0:01:10]} 36. Rxb1 {[%emt 0:00:21]} Bxb1 {[%emt 0:00:04]} 37. Bg3 {[%emt 0:00:30]} Rc2 {[%emt 0:01:37]} 38. Bf2 {[%emt 0:02:28]} Ba2 {[%emt 0:00:23]} 39. Nd7 {[%emt 0:00:09]} Kf7 {[%emt 0:01:01]} 40. Kg2 {[%emt 0:00:39]} Bd5 {[%emt 0:00:29]} 41. h4 {[%emt 0:06:47]} Rc3 {[%emt 0:04:37]} 42. Ne5+ {[%emt 0:00:08]} Ke6 {[%emt 0:00:05]} 43. Kg3 {[%emt 0:05:46]} c5 {[%emt 0:02:43]} 44. Kf4 {[%emt 0:00:12]} c4 {[%emt 0:00:08]} 45. Be3 {[%emt 0:00:10]} Rb3 {[%emt 0:03:16]} 46. Bc1 {[%emt 0:02:47]} c3 {[%emt 0:02:28]} 47. Ke3 {[%emt 0:00:36]} Rb1 {[%emt 0:01:23]} 48. Ba3 {[%emt 0:00:20]} Ra1 {[%emt 0:00:21]} 0-1

[Event "Fagernes Chess GM-Swiss 2024"]
[Site "Fagernes"]
[Date "2024.03.28"]
[Round "6.25"]
[White "Mihajlov, Sebastian"]
[Black "Al-Tarboush, Ward"]
[Result "1/2-1/2"]
[ECO "B33"]
[WhiteElo "2373"]
[BlackElo "2277"]
[Annotator "RC"]
[PlyCount "152"]
[EventDate "2024.03.25"]
[EventType "swiss"]
[EventCountry "NOR"]
[SourceTitle "playchess.com"]
[Source "ChessBase"]
[SourceQuality "1"]
[TimeControl "40/6000+30:2400+30"]

1. e4 {[%emt 0:00:55]} c5 {[%emt 0:00:05]} 2. Nf3 {[%emt 0:00:30]} Nc6 {[%emt 0:00:10]} 3. d4 {[%emt 0:00:05]} cxd4 {[%emt 0:00:04]} 4. Nxd4 {[%emt 0:00:04]} Nf6 {[%emt 0:00:02]} 5. Nc3 {[%emt 0:00:07]} e5 {[%emt 0:00:03]} 6. Ndb5 {[%emt 0:00:05]} d6 {[%emt 0:00:03]} 7. Bg5 {[%emt 0:00:04]} a6 {[%emt 0:00:07]} 8. Na3 {[%emt 0:00:03]} b5 {[%emt 0:00:04]} 9. Nd5 {[%emt 0:00:03]} Be7 {[%emt 0:00:04]} 10. Bxf6 {[%emt 0:00:04]} Bxf6 {[%emt 0:00:03]} 11. c3 {[%emt 0:00:24]} Bg5 {[%emt 0:00:07]} 12. Nc2 {[%emt 0:00:05]} Rb8 {[%emt 0:00:02]} 13. a4 {[%emt 0:01:48]} bxa4 {[%emt 0:00:04]} 14. Ncb4 {[%emt 0:00:04]} Nxb4 {[%emt 0:00:03]} 15. cxb4 {[%emt 0:00:08]} Bd7 {[%emt 0:00:17]} 16. Rxa4 {[%emt 0:07:27]} a5 {[%emt 0:03:13]} 17. b5 {[%emt 0:04:39]} Bxb5 {[%emt 0:02:06]} 18. Bxb5+ {[%emt 0:00:10]} Rxb5 {[%emt 0:00:00]} 19. Qe2 {[%emt 0:18:24]} Rc5 {[%emt 0:01:17]} 20. O-O {[%emt 0:02:52]} O-O {[%emt 0:00:12]} 21. Rfa1 {[%emt 0:20:18]} f5 {[%emt 0:05:20]} 22. Nc3 {[%emt 0:06:22]} f4 {[%emt 0:06:53]} 23. Qg4 {[%emt 0:09:47]} f3 {[%emt 0:07:57]} 24. g3 {[%emt 0:00:11]} Bd2 {[%emt 0:05:53]} 25. Nd5 {[%emt 0:02:44]} Qe8 {[%emt 0:06:41]} 26. R4a3 {[%emt 0:02:57]} h5 {[%emt 0:00:34]} 27. Qh3 {[%emt 0:00:38]} Rc4 {[%emt 0:02:00]} 28. Rd1 {[%emt 0:04:02]} Rxe4 {[%emt 0:03:21]} 29. Rd3 {[%emt 0:00:08]} Bh6 {[%emt 0:08:28]} 30. Nc3 {[%emt 0:02:40]} Rg4 {[%emt 0:08:07]} 31. Rxd6 {[%emt 0:00:11]} e4 {[%emt 0:00:47]} 32. Rd8 {[%emt 0:09:43]} Qxd8 {[%emt 0:02:11]} 33. Rxd8 {[%emt 0:00:06]} Rxd8 {[%emt 0:00:03]} 34. Qxh5 {[%emt 0:00:07]} Rg5 {[%emt 0:07:22]} 35. Qh4 {[%emt 0:01:20]} Rd4 {[%emt 0:01:04]} 36. Qh3 {[%emt 0:00:51]} Re5 {[%emt 0:01:39]} 37. Qc8+ {[%emt 0:07:16]} Kh7 {[%emt 0:00:12]} 38. Qc7 {[%emt 0:00:08]} e3 {[%emt 0:09:27]} 39. Qxe5 {[%emt 0:03:17]} e2 {[%emt 0:00:22]} 40. h4 {[%emt 0:00:48]} Rd1+ {[%emt 0:00:14]} 41. Kh2 {[%emt 0:40:03]} e1=Q {[%emt 0:40:05]} 42. Qf5+ {[%emt 0:00:04]} Kg8 {[%emt 0:00:21]} 43. Qc8+ {[%emt 0:00:24]} Kf7 {[%emt 0:00:19]} 44. Qf5+ {[%emt 0:00:23]} Ke8 {[%emt 0:01:19]} 45. Nxd1 {[%emt 0:00:08]} Qxd1 {[%emt 0:00:05]} 46. Qe5+ {[%emt 0:04:44]} Kd7 {[%emt 0:00:19]} 47. Qb5+ {[%emt 0:00:40]} Kd6 {[%emt 0:00:51]} 48. Qxa5 {[%emt 0:00:00]} Qe2 {[%emt 0:00:00]} 49. Qb6+ {[%emt 0:00:00]} Kd5 {[%emt 0:00:00]} 50. Qa5+ {[%emt 0:00:00]} Ke4 {[%emt 0:00:00]} 51. Qb4+ {[%emt 0:00:00]} Ke5 {[%emt 0:00:00]} 52. Qc5+ {[%emt 0:00:00]} Ke4 {[%emt 0:00:00]} 53. Qb4+ {[%emt 0:00:00]} Kd5 {[%emt 0:00:00]} 54. Qa5+ {[%emt 0:00:00]} Kc6 {[%emt 0:00:00]} 55. Qa4+ {[%emt 0:00:00]} Kd6 {[%emt 0:00:00]} 56. Qb4+ {[%emt 0:00:00]} Ke6 {[%emt 0:00:00]} 57. Qb6+ {[%emt 0:00:00]} Kf7 {[%emt 0:00:00]} 58. b4 {[%emt 0:00:00]} Kg8 {[%emt 0:00:00]} 59. Qc5 {[%emt 0:00:00]} g6 {[%emt 0:00:00]} 60. Kh3 {[%emt 0:00:00]} Qe6+ {[%emt 0:00:00]} 61. Kh2 {[%emt 0:01:01]} Bf8 {[%emt 0:00:00]} 62. Qd4 {[%emt 0:00:07]} Qe2 {[%emt 0:00:00]} 63. Kh3 {[%emt 0:00:16]} Qb5 {[%emt 0:00:00]} 64. Qe4 {[%emt 0:01:46]} Qd7+ {[%emt 0:00:00]} 65. g4 {[%emt 0:01:21]} Qf7 {[%emt 0:00:00]} 66. b5 {[%emt 0:00:52]} Bc5 {[%emt 0:00:00]} 67. Kg3 {[%emt 0:00:05]} Bd6+ {[%emt 0:00:00]} 68. Kh3 {[%emt 0:00:05]} Bc7 {[%emt 0:00:00]} 69. Qc6 {[%emt 0:01:19]} Kh7 {[%emt 0:00:00]} 70. b6 {[%emt 0:01:12]} Bb8 {[%emt 0:00:00]} 71. b7 {[%emt 0:02:22]} Kg7 {[%emt 0:00:00]} 72. Qc3+ {[%emt 0:00:03]} Qf6 {[%emt 0:04:45]} 73. Qxf6+ {[%emt 0:00:21]} Kxf6 {[%emt 0:00:02]} 74. h5 {[%emt 0:00:07]} Kg5 {[%emt 0:00:57]} 75. hxg6 {[%emt 0:00:06]} Kxg6 {[%emt 0:00:03]} 76. g5 {[%emt 0:00:06]} Kxg5 {[%emt 0:00:08]} 1/2-1/2